[Event "Uhlenkoeper-Open 2024"]
[Site "Uelzen"]
[Date "2024.12.31"]
[Round "9.4"]
[White "Glek, Igor"]
[Black "Dehn, Marcus"]
[Result "1-0"]
[ECO "B01"]
[WhiteElo "2431"]
[BlackElo "2053"]
[Annotator "TA"]
[PlyCount "66"]
[EventDate "2024.12.27"]
[EventType "swiss"]
[EventCountry "GER"]
[SourceTitle "playchess.com"]
[Source "ChessBase"]
[SourceQuality "1"]
[TimeControl "40/5400+30:1800+30"]

{[%evp 9,66,56,103,88,100,95,99,101,123,83,99,79,89,82,86,71,104,105,122,112,126,118,142,102,202,179,170,151,147,157,164,146,187,134,161,141,215,155,154,159,206,181,236,224,460,503,492,492,468,400,432,404,400,386,802,505,1233,1165,29986]} 1. e4 {[%emt 0:05:08]} d5 {[%emt 0:00:11]} 2. exd5 {[%emt 0:00:09]} Qxd5 {[%emt 0:00:08]} 3. Nc3 {[%emt 0:00:04]} Qd8 {[%emt 0:00:06]} 4. d4 {[%emt 0:00:05]} g6 {[%emt 0:00:04]} 5. Bf4 {[%emt 0:00:30]} Nh6 {[%emt 0:00:23]} (5... Bg7 $14 {feels stronger.}) 6. Be5 {[%emt 0:00:12]} f6 {[%emt 0:00:33]} 7. Bf4 {[%emt 0:03:33]} Nf5 {[%emt 0:00:06] [#]} 8. Nf3 $1 {[%emt 0:09:07]} Nd6 {[%emt 0:00:35] Dodges Bc4} 9. g3 {[%emt 0:11:19]} Bg7 {[%emt 0:05:06]} 10. Bg2 {[%emt 0:01:59]} Nd7 {[%emt 0:00:29]} 11. O-O {[%emt 0:00:10]} e6 {[%emt 0:09:23]} 12. Re1 {[%emt 0:02:36]} Kf7 {[%emt 0:00:16]} 13. Qd3 {[%emt 0:11:29]} Re8 {[%emt 0:07:57]} 14. a4 {[%emt 0:03:29][%cal Ba2a4,Ba4a5][%mdl 32]} Nf8 {[%emt 0:02:14]} 15. a5 {[%emt 0:01:07]} a6 {[%emt 0:05:44]} 16. Nd2 {[%emt 0:11:35]} Ra7 {[%emt 0:11:07]} (16... Kg8 $16 17. h4 Nf5) 17. Bxd6 $18 {[%emt 0:10:43]} Qxd6 {[%emt 0:02:14]} 18. Nce4 {[%emt 0:03:35]} Qd8 {[%emt 0:00:15]} 19. Nc5 {[%emt 0:01:38]} Kg8 {[%emt 0:03:11] Black is weak on the light squares} 20. c3 {[%emt 0:03:39]} Kh8 {[%emt 0:02:24]} 21. b4 {[%emt 0:04:02]} (21. Qe3 $18) 21... Re7 {[%emt 0:03:20]} 22. Nc4 {[%emt 0:02:52]} Qe8 {[%emt 0:01:02]} (22... b6 $16) 23. Qc2 {[%emt 0:00:31]} Nd7 {[%emt 0:01:42]} 24. Nd3 {[%emt 0:01:07] White is much more active. The black rooks are passive.} Bf8 {[%emt 0:04:51]} (24... e5 $16 25. Ne3 Qd8 26. dxe5 c6 27. exf6 Nxf6) 25. Re2 {[%emt 0:00:42]} Bh6 {[%emt 0:05:05]} (25... Qf7 $142 26. Ne3 c6) 26. Rae1 {[%emt 0:00:08]} c6 $2 {[%emt 0:02:20]} (26... Nf8 27. f4 Qd8) 27. Nd6 {[%emt 0:02:05]} Qg8 {[%emt 0:00:04]} 28. Bh3 {[%emt 0:01:30]} f5 {[%emt 0:08:57]} 29. Nxc8 {[%emt 0:02:09]} Qxc8 {[%emt 0:00:06]} 30. Rxe6 {[%emt 0:00:07]} Rxe6 {[%emt 0:00:03]} 31. Rxe6 {[%emt 0:00:02]} Nf6 $2 {[%emt 0:00:15]} (31... Ra8 32. Bxf5 Bg7) 32. Qe2 {[%emt 0:02:14]} Ne4 {[%emt 0:00:08]} (32... Bg7 $142 33. Bg2 Qg8) 33. Rxe4 {[%emt 0:00:05] Re8+ would kill now.} Kg8 {[%emt 0:26:41]} 1-0

[Event "Uhlenkoeper-Open 2024"]
[Site "Uelzen"]
[Date "2024.12.31"]
[Round "9.5"]
[White "Askerov, Imamali"]
[Black "Bogomolow, Sergej"]
[Result "1/2-1/2"]
[ECO "C03"]
[WhiteElo "2007"]
[BlackElo "2090"]
[Annotator "NA RC"]
[PlyCount "115"]
[EventDate "2024.12.27"]
[EventType "swiss"]
[EventCountry "GER"]
[SourceTitle "playchess.com"]
[Source "ChessBase"]
[SourceQuality "1"]
[TimeControl "40/5400+30:1800+30"]

1. e4 {[%emt 1:31:00]} e6 {[%emt 0:00:06]} 2. d4 {[%emt 0:01:32]} d5 {[%emt 0:00:04]} 3. Nd2 {[%emt 0:01:18]} Be7 {[%emt 0:00:09]} 4. e5 {[%emt 1:21:11]} c5 {[%emt 0:00:09]} 5. c3 {[%emt 0:00:08]} cxd4 {[%emt 0:00:09]} 6. cxd4 {[%emt 0:00:06]} Qb6 {[%emt 0:00:05]} 7. Ndf3 {[%emt 0:38:40]} Bb4+ {[%emt 0:16:32]} 8. Bd2 {[%emt 0:42:33]} Nc6 {[%emt 0:00:10]} 9. Bc3 {[%emt 0:28:31]} f6 {[%emt 0:19:52]} 10. exf6 {[%emt 0:01:20]} Nxf6 {[%emt 0:00:14]} 11. a3 {[%emt 0:00:24]} Bd6 {[%emt 0:02:05]} 12. Bd3 {[%emt 0:00:38]} O-O {[%emt 0:00:34]} 13. Qc2 {[%emt 0:01:40]} Bd7 {[%emt 0:05:36]} 14. Ne2 {[%emt 0:00:40]} Rac8 {[%emt 0:04:56]} 15. O-O {[%emt 0:02:05]} e5 {[%emt 0:14:48]} 16. dxe5 {[%emt 0:00:23]} Nxe5 {[%emt 0:00:05]} 17. Nxe5 {[%emt 0:01:31]} Bxe5 {[%emt 0:00:04]} 18. Qd2 {[%emt 0:00:33]} Bb8 {[%emt 0:04:54]} 19. Ng3 {[%emt 0:00:43]} Rce8 {[%emt 0:04:05]} 20. Bd4 {[%emt 0:00:58]} Qd6 {[%emt 0:00:25]} 21. Qg5 {[%emt 0:01:02]} Bc6 {[%emt 0:02:47]} 22. b4 {[%emt 0:01:02]} b6 {[%emt 0:02:24]} 23. f3 {[%emt 0:02:29]} Qf4 {[%emt 0:01:36]} 24. Qxf4 {[%emt 0:00:22]} Bxf4 {[%emt 0:00:05]} 25. Rfe1 {[%emt 0:00:37]} Bd2 {[%emt 0:06:06]} 26. Rxe8 {[%emt 0:05:39]} Rxe8 {[%emt 0:00:03]} 27. Nf5 {[%emt 0:00:44]} Bd7 {[%emt 0:01:06]} 28. Kf2 {[%emt 0:01:53]} g6 {[%emt 0:06:36]} 29. Bxf6 {[%emt 0:01:15]} Bxf5 {[%emt 0:01:26]} 30. Bxf5 {[%emt 0:00:18]} gxf5 {[%emt 0:00:04]} 31. Bd4 {[%emt 0:01:25]} Rc8 {[%emt 0:01:34]} 32. Ra2 {[%emt 0:00:11]} Bg5 {[%emt 0:00:56]} 33. Ke2 {[%emt 0:01:05]} Kf7 {[%emt 0:01:29]} 34. Kd3 {[%emt 0:00:20]} Rc1 {[%emt 0:01:06]} 35. g3 {[%emt 0:01:27]} Rd1+ {[%emt 0:01:45]} 36. Kc3 {[%emt 0:00:04]} Bf6 {[%emt 0:01:03]} 37. Bxf6 {[%emt 0:00:31]} Kxf6 {[%emt 0:00:05]} 38. Re2 {[%emt 0:02:06]} Ra1 {[%emt 0:01:37]} 39. Kb2 {[%emt 0:00:25]} Rd1 {[%emt 0:00:09]} 40. Kc2 {[%emt 0:00:26]} Rd4 {[%emt 0:02:33]} 41. Re8 {[%emt 0:06:04]} a6 {[%emt 0:06:11]} 42. Rb8 {[%emt 0:09:13]} Rc4+ {[%emt 0:00:57]} 43. Kd3 {[%emt 0:00:34]} Rc6 {[%emt 0:00:05]} 44. Kd4 {[%emt 0:01:44]} Ke6 {[%emt 0:00:29]} 45. Re8+ {[%emt 0:00:42]} Kd6 {[%emt 0:03:00]} 46. Rd8+ {[%emt 0:02:49]} Ke6 {[%emt 0:00:07]} 47. Rxd5 {[%emt 0:01:16]} Rc2 {[%emt 0:00:25]} 48. Re5+ {[%emt 0:00:05]} Kf6 {[%emt 0:00:04]} 49. Re3 {[%emt 0:00:35]} Rxh2 {[%emt 0:02:04]} 50. Kd5 {[%emt 0:00:22]} Rd2+ {[%emt 0:22:36]} 51. Kc6 {[%emt 0:00:40]} b5 {[%emt 0:00:14]} 52. Kb7 {[%emt 0:01:21]} f4 {[%emt 0:06:11]} 53. gxf4 {[%emt 0:00:38]} Rd6 {[%emt 0:00:03]} 54. Re5 {[%emt 0:07:07]} h6 {[%emt 0:04:15]} 55. Rh5 {[%emt 0:02:47]} Kg6 {[%emt 0:00:28]} 56. Rh4 {[%emt 0:03:46]} h5 {[%emt 0:03:26]} 57. Rh3 {[%emt 0:01:07]} Rf6 {[%emt 0:00:41]} 58. Rh4 {[%emt 0:03:15]} 1/2-1/2

[Event "Uhlenkoeper-Open 2024"]
[Site "Uelzen"]
[Date "2024.12.31"]
[Round "9.6"]
[White "Tarasenko, Nazar"]
[Black "Bargsten, Justus"]
[Result "0-1"]
[ECO "D36"]
[WhiteElo "2011"]
[BlackElo "2228"]
[Annotator "COMBH"]
[PlyCount "40"]
[EventDate "2024.12.27"]
[EventType "swiss"]
[EventCountry "GER"]
[SourceTitle "playchess.com"]
[Source "ChessBase"]
[SourceQuality "1"]
[TimeControl "40/5400+30:1800+30"]

1. d4 {[%emt 0:00:02]} d5 {[%emt 0:00:04]} 2. c4 {[%emt 0:00:05]} e6 {[%emt 0:00:03]} 3. Nc3 {[%emt 0:00:02]} Nf6 {[%emt 0:00:04]} 4. cxd5 {[%emt 0:00:26]} exd5 {[%emt 0:00:05]} 5. Bg5 {[%emt 0:00:03]} c6 {[%emt 0:00:07]} 6. e3 {[%emt 0:00:21]} Be7 {[%emt 0:00:07]} 7. Qc2 {[%emt 0:00:05]} O-O {[%emt 0:00:06]} 8. Bd3 {[%emt 0:00:03]} h6 {[%emt 0:00:05]} 9. Bf4 {[%emt 0:03:20]} Nh5 {[%emt 0:03:44]} 10. Be5 {[%emt 0:00:11]} Nd7 {[%emt 0:01:01]} 11. Be2 {[%emt 0:06:55]} Nhf6 {[%emt 0:02:43]} 12. Bg3 {[%emt 0:00:12]} Re8 {[%emt 0:00:58]} 13. Nf3 {[%emt 0:01:35]} Nh5 {[%emt 0:10:29]} 14. Nxd5 {[%emt 0:00:15]} cxd5 {[%emt 0:00:14]} 15. Bc7 {[%emt 0:00:09]} Bb4+ {[%emt 0:00:02]} 16. Nd2 {[%emt 0:00:59]} Bxd2+ {[%emt 0:04:43]} 17. Kxd2 {[%emt 0:02:11]} Qg5 {[%emt 0:01:59]} 18. f4 {[%emt 0:00:32]} Qxg2 {[%emt 0:04:10]} 19. Rhg1 {[%emt 0:03:50]} Qh3 {[%emt 0:02:55]} 20. f5 {[%emt 0:01:40]} Qxe3+ {[%emt 0:00:10]} 0-1

[Event "Uhlenkoeper-Open 2024"]
[Site "Uelzen"]
[Date "2024.12.31"]
[Round "9.7"]
[White "Raddatz, Michael"]
[Black "Leppert, Stefan"]
[Result "1-0"]
[ECO "B98"]
[WhiteElo "1927"]
[BlackElo "1930"]
[Annotator "NA"]
[PlyCount "32"]
[EventDate "2024.12.27"]
[EventType "swiss"]
[EventCountry "GER"]
[SourceTitle "playchess.com"]
[Source "ChessBase"]
[SourceQuality "1"]
[TimeControl "40/5400+30:1800+30"]

1. e4 {[%emt 0:11:21]} c5 {[%emt 0:01:17]} 2. Nf3 {[%emt 0:00:12]} d6 {[%emt 0:00:06]} 3. d4 {[%emt 0:00:24]} cxd4 {[%emt 0:00:10]} 4. Nxd4 {[%emt 0:00:10]} Nf6 {[%emt 0:00:06]} 5. Nc3 {[%emt 0:00:13]} a6 {[%emt 0:00:06]} 6. Bg5 {[%emt 0:01:16]} e6 {[%emt 0:00:08]} 7. f4 {[%emt 0:00:22]} Be7 {[%emt 0:00:47]} 8. Qf3 {[%emt 0:00:29]} h6 {[%emt 0:00:34]} 9. Bh4 {[%emt 0:00:48]} g5 {[%emt 0:01:03]} 10. fxg5 {[%emt 0:01:04]} Nfd7 {[%emt 0:00:07]} 11. O-O-O {[%emt 0:06:38]} Bxg5+ {[%emt 0:00:25]} 12. Bxg5 {[%emt 0:02:57]} Qxg5+ {[%emt 0:00:08]} 13. Kb1 {[%emt 0:00:09]} Ne5 {[%emt 0:00:04]} 14. Qf2 {[%emt 0:00:43]} Nbd7 {[%emt 0:02:25]} 15. Be2 {[%emt 0:02:30]} Rg8 {[%emt 0:01:39]} 16. Rdf1 {[%emt 0:07:14]} Qxg2 {[%emt 0:01:37]} 1-0

[Event "Uhlenkoeper-Open 2024"]
[Site "Uelzen"]
[Date "2024.12.31"]
[Round "9.9"]
[White "Burnus, Finn Crispin"]
[Black "Martin, Dennis"]
[Result "0-1"]
[ECO "E05"]
[WhiteElo "1883"]
[BlackElo "2005"]
[Annotator "NA COMBH"]
[PlyCount "112"]
[EventDate "2024.12.27"]
[EventType "swiss"]
[EventCountry "GER"]
[SourceTitle "playchess.com"]
[Source "ChessBase"]
[SourceQuality "1"]
[TimeControl "40/5400+30:1800+30"]

1. d4 {[%emt 0:00:02]} Nf6 {[%emt 0:00:02]} 2. c4 {[%emt 0:00:07]} e6 {[%emt 0:00:03]} 3. Nf3 {[%emt 0:00:06]} d5 {[%emt 0:00:05]} 4. g3 {[%emt 0:00:08]} Be7 {[%emt 0:00:03]} 5. Bg2 {[%emt 0:00:06]} O-O {[%emt 0:00:06]} 6. O-O {[%emt 0:00:03]} dxc4 {[%emt 0:00:07]} 7. Qc2 {[%emt 0:00:16]} a6 {[%emt 0:00:02]} 8. a4 {[%emt 0:00:16]} Bd7 {[%emt 0:00:08]} 9. Nbd2 {[%emt 0:04:06]} Bc6 {[%emt 0:00:26]} 10. Nxc4 {[%emt 0:02:18]} Be4 {[%emt 0:00:33]} 11. Qb3 {[%emt 0:01:39]} Nc6 {[%emt 0:00:03]} 12. Be3 {[%emt 0:11:06]} Rb8 {[%emt 0:03:08]} 13. Rfd1 {[%emt 0:08:34]} Bd5 {[%emt 0:10:36]} 14. Qc2 {[%emt 0:02:28]} Nb4 {[%emt 0:02:09]} 15. Qc1 {[%emt 0:00:12]} Rc8 {[%emt 0:02:52]} 16. Nfe5 {[%emt 0:14:18]} Bxg2 {[%emt 0:01:52]} 17. Kxg2 {[%emt 0:02:18]} a5 {[%emt 0:00:02]} 18. f3 {[%emt 0:03:10]} c6 {[%emt 0:01:17]} 19. Qd2 {[%emt 0:03:29]} Qc7 {[%emt 0:00:52]} 20. Bf4 {[%emt 0:01:18]} Nfd5 {[%emt 0:00:17]} 21. e4 {[%emt 0:00:37]} Nxf4+ {[%emt 0:00:06]} 22. Qxf4 {[%emt 0:00:08]} b5 {[%emt 0:17:55]} 23. axb5 {[%emt 0:14:35]} cxb5 {[%emt 0:01:05]} 24. Nxa5 {[%emt 0:00:07]} f6 {[%emt 0:00:28]} 25. Nd3 {[%emt 0:01:32]} Qxf4 {[%emt 0:00:04]} 26. Nxf4 {[%emt 0:00:12]} Nc2 {[%emt 0:00:09]} 27. Nxe6 {[%emt 0:01:33]} Rfe8 {[%emt 0:00:01]} 28. d5 {[%emt 0:02:28]} Nxa1 {[%emt 0:00:23]} 29. Rxa1 {[%emt 0:00:08]} Rc2+ {[%emt 0:00:12]} 30. Kh3 {[%emt 0:00:50]} Ra8 {[%emt 0:01:05]} 31. b4 {[%emt 0:07:55]} Bxb4 {[%emt 0:01:41]} 32. Rb1 {[%emt 0:04:35]} Bxa5 {[%emt 0:00:40]} 33. Rxb5 {[%emt 0:00:05]} Ra7 {[%emt 0:00:38]} 34. Rb8+ {[%emt 0:00:09]} Kf7 {[%emt 0:00:07]} 35. Rf8+ {[%emt 0:00:15]} Ke7 {[%emt 0:00:15]} 36. Rg8 {[%emt 0:00:48]} Kd6 {[%emt 0:00:29]} 37. Nxg7 {[%emt 0:00:07]} Rf7 {[%emt 0:03:46]} 38. Ra8 {[%emt 0:02:55]} Rxg7 {[%emt 0:01:25]} 39. Rxa5 {[%emt 0:00:07]} Ke5 {[%emt 0:01:28]} 40. Ra6 {[%emt 0:00:57]} Re7 {[%emt 0:00:02]} 41. Ra4 {[%emt 0:31:02]} Rd2 {[%emt 0:32:53]} 42. Rc4 {[%emt 0:02:01]} Rd4 {[%emt 0:02:08]} 43. Rc6 {[%emt 0:00:35]} Rd3 {[%emt 0:01:03]} 44. f4+ {[%emt 0:11:30]} Kxe4 {[%emt 0:01:10]} 45. Re6+ {[%emt 0:00:14]} Rxe6 {[%emt 0:00:13]} 46. dxe6 {[%emt 0:00:03]} Kf5 {[%emt 0:00:02]} 47. Kh4 {[%emt 0:00:39]} Kxe6 {[%emt 0:01:09]} 48. Kh5 {[%emt 0:00:57]} Rd2 {[%emt 0:00:42]} 49. h4 {[%emt 0:00:11]} Kf5 {[%emt 0:00:21]} 50. Kh6 {[%emt 0:00:00]} Rg2 {[%emt 0:00:00]} 51. h5 {[%emt 0:00:00]} Rxg3 {[%emt 0:00:00]} 52. Kxh7 {[%emt 0:00:00]} Kxf4 {[%emt 0:00:00]} 53. h6 {[%emt 0:00:00]} Kf5 {[%emt 0:00:00]} 54. Kh8 {[%emt 0:00:00]} Kg6 {[%emt 0:00:00]} 55. h7 {[%emt 0:00:00]} Ra3 {[%emt 0:00:00]} 56. Kg8 {[%emt 0:00:00]} Ra8# {[%emt 0:00:00]} 0-1

[Event "Uhlenkoeper-Open 2024"]
[Site "Uelzen"]
[Date "2024.12.31"]
[Round "9.10"]
[White "Buergener, Richard"]
[Black "Wetterau, Nathanael"]
[Result "1/2-1/2"]
[ECO "D20"]
[WhiteElo "1857"]
[BlackElo "1961"]
[Annotator "NA RC"]
[PlyCount "118"]
[EventDate "2024.12.27"]
[EventType "swiss"]
[EventCountry "GER"]
[SourceTitle "playchess.com"]
[Source "ChessBase"]
[SourceQuality "1"]
[TimeControl "40/5400+30:1800+30"]

1. e4 {[%emt 0:00:02]} e5 {[%emt 0:00:04]} 2. Nf3 {[%emt 0:00:10]} Nf6 {[%emt 0:00:04]} 3. Nxe5 {[%emt 0:00:07]} d6 {[%emt 0:00:12]} 4. Nf3 {[%emt 0:00:06]} Nxe4 {[%emt 0:00:05]} 5. d4 {[%emt 0:00:07]} d5 {[%emt 0:00:05]} 6. Bd3 {[%emt 0:00:05]} Be7 {[%emt 0:01:09]} 7. O-O {[%emt 0:00:12]} O-O {[%emt 0:00:10]} 8. c4 {[%emt 0:00:14]} Nf6 {[%emt 0:00:48]} 9. h3 {[%emt 0:02:16]} dxc4 {[%emt 0:02:34]} 10. Bxc4 {[%emt 0:00:42]} Bf5 {[%emt 0:00:51]} 11. Bd3 {[%emt 0:13:24]} Bxd3 {[%emt 0:00:41]} 12. Qxd3 {[%emt 0:00:04]} c6 {[%emt 0:01:30]} 13. Bf4 {[%emt 0:06:40]} Nd5 {[%emt 0:03:47]} 14. Bg3 {[%emt 0:00:59]} Nd7 {[%emt 0:06:26]} 15. Nc3 {[%emt 0:08:25]} N7f6 {[%emt 0:04:04]} 16. Rfe1 {[%emt 0:03:59]} Re8 {[%emt 0:11:36]} 17. Ne5 {[%emt 0:06:16]} Bd6 {[%emt 0:05:24]} 18. Nxd5 {[%emt 0:02:04]} Bxe5 {[%emt 0:03:16]} 19. Rxe5 {[%emt 0:04:07]} Nxd5 {[%emt 0:02:58]} 20. Rae1 {[%emt 0:01:50]} Qd7 {[%emt 0:00:42]} 21. Qf5 {[%emt 0:07:06]} Rxe5 {[%emt 0:02:35]} 22. Qxe5 {[%emt 0:04:42]} f6 {[%emt 0:10:25]} 23. Qe2 {[%emt 0:06:22]} Rf8 {[%emt 0:08:28]} 24. Qe6+ {[%emt 0:06:29]} Qxe6 {[%emt 0:00:09]} 25. Rxe6 {[%emt 0:00:06]} Kf7 {[%emt 0:00:11]} 26. Re2 {[%emt 0:00:36]} Rd8 {[%emt 0:04:10]} 27. Rd2 {[%emt 0:04:04]} Ne7 {[%emt 0:07:52]} 28. Bf4 {[%emt 0:03:44]} Nf5 {[%emt 0:01:45]} 29. Be3 {[%emt 0:00:26]} Ke6 {[%emt 0:01:42]} 30. Kf1 {[%emt 0:04:36]} Kd5 {[%emt 0:00:27]} 31. Ke2 {[%emt 0:01:06]} Re8 {[%emt 0:00:29]} 32. Kd3 {[%emt 0:01:50]} b6 {[%emt 0:04:12]} 33. Rc2 {[%emt 0:03:33]} Nd6 {[%emt 0:00:51]} 34. a4 {[%emt 0:02:23]} a5 {[%emt 0:05:53]} 35. b3 {[%emt 0:01:29]} Nf5 {[%emt 0:03:06]} 36. Rc4 {[%emt 0:02:02]} Nd6 {[%emt 0:02:32]} 37. Rc2 {[%emt 0:00:49]} Rc8 {[%emt 0:01:19]} 38. Bd2 {[%emt 0:04:43]} Nb7 {[%emt 0:02:35]} 39. Rc4 {[%emt 0:00:38]} Nd8 {[%emt 0:01:07]} 40. b4 {[%emt 0:01:20]} axb4 {[%emt 0:00:20]} 41. Rxb4 {[%emt 0:30:26]} Rb8 {[%emt 0:30:09]} 42. Bf4 {[%emt 0:00:00]} Rb7 {[%emt 0:00:00]} 43. Rb2 {[%emt 0:00:00]} Ne6 {[%emt 0:00:00]} 44. Be3 {[%emt 0:00:00]} Rb8 {[%emt 0:00:00]} 45. Rb1 {[%emt 0:00:00]} Rb7 {[%emt 0:00:00]} 46. Rb2 {[%emt 0:00:00]} b5 {[%emt 0:00:00]} 47. axb5 {[%emt 0:00:00]} Rxb5 {[%emt 0:00:00]} 48. Ra2 {[%emt 0:00:00]} Rb3+ {[%emt 0:00:00]} 49. Kc2 {[%emt 0:00:00]} Rb7 {[%emt 0:00:00]} 50. Kd3 {[%emt 0:00:00]} Nc7 {[%emt 0:00:00]} 51. Ra5+ {[%emt 0:00:00]} Nb5 {[%emt 0:00:00]} 52. Ra8 {[%emt 0:00:00]} Rd7 {[%emt 0:00:00]} 53. Rc8 {[%emt 0:00:00]} Nc7 {[%emt 0:00:00]} 54. Rb8 {[%emt 0:00:00]} Ne6 {[%emt 0:00:00]} 55. Ra8 {[%emt 0:00:00]} Rb7 {[%emt 0:00:00]} 56. Ra5+ {[%emt 0:00:57]} Rb5 {[%emt 0:00:00]} 57. Ra7 {[%emt 0:00:11]} Rb3+ {[%emt 0:00:00]} 58. Kc2 {[%emt 0:02:59]} Rb8 {[%emt 0:04:21]} 59. Kd3 {[%emt 0:00:37]} Rb3+ {[%emt 0:00:10]} 1/2-1/2